fUSD/lending_fUSD_20260111
["ID","MTS","AMOUNT","RATE_DAILY","PERIOD"]
[401352660,1768151439278,-500.0,0.00015197,2]
[401352662,1768151439287,-500.0,0.00015197,2]
[401352664,1768151439296,-500.0,0.00015197,2]
[401352666,1768151439305,-500.0,0.00015197,2]
[401352668,1768151439315,-500.0,0.00015197,2]
[401352670,1768151439324,-500.0,0.00015197,2]
[401352672,1768151439333,-500.0,0.00015197,2]
[401352674,1768151439343,-500.0,0.00015197,2]
[401352676,1768151439353,-500.0,0.00015197,2]
[401352678,1768151439362,-500.0,0.00015197,2]
[401352680,1768151439372,-500.0,0.00015197,2]
[401352682,1768151439381,-500.0,0.00015197,2]
[401352684,1768151439391,-500.0,0.00015197,2]
[401352686,1768151439401,-500.0,0.00015197,2]
[401352688,1768151439410,-500.0,0.00015197,2]
[401352690,1768151439419,-500.0,0.00015197,2]
[401352692,1768151439429,-500.0,0.00015197,2]
[401352694,1768151439438,-500.0,0.00015197,2]
[401352696,1768151439447,-500.0,0.00015197,2]
[401352698,1768151439457,-500.0,0.00015197,2]
[401352700,1768151439467,-500.0,0.00015197,2]
[401352702,1768151439476,-500.0,0.00015197,2]
[401352704,1768151439485,-500.0,0.00015197,2]
[401352706,1768151439495,-500.0,0.00015197,2]
[401352708,1768151439504,-500.0,0.00015197,2]
[401352710,1768151439514,-500.0,0.00015197,2]
[401352712,1768151439523,-500.0,0.00015197,2]
[401352714,1768151439533,-500.0,0.00015197,2]
[401352716,1768151439542,-500.0,0.00015197,2]
[401352718,1768151439552,-500.0,0.00015197,2]
[401352720,1768151439561,-500.0,0.00015197,2]
[401352722,1768151439571,-500.0,0.00015197,2]
[401352724,1768151439582,-500.0,0.00015197,2]
[401352726,1768151439590,-500.0,0.00015197,2]
[401352729,1768151439600,-500.0,0.00015197,2]
[401352730,1768151439610,-500.0,0.00015197,2]
[401352732,1768151439619,-500.0,0.00015197,2]
[401352735,1768151439629,-500.0,0.00015197,2]
[401352736,1768151439639,-500.0,0.00015197,2]
[401352738,1768151439648,-500.0,0.00015197,2]
[401352741,1768151439658,-500.0,0.00015197,2]
[401352743,1768151439668,-500.0,0.00015197,2]
[401352745,1768151439677,-500.0,0.00015197,2]
[401352747,1768151439686,-500.0,0.00015197,2]
[401352749,1768151439695,-500.0,0.00015197,2]
[401352751,1768151439704,-500.0,0.00015197,2]
[401352753,1768151439714,-500.0,0.00015197,2]
[401352755,1768151439723,-500.0,0.00015197,2]
[401352757,1768151439733,-500.0,0.00015197,2]
[401352759,1768151439743,-500.0,0.00015197,2]
[401352760,1768151439752,-467.49392775,0.00015197,2]
[401352763,1768151439762,-500.0,0.00015197,2]
[401352764,1768151439771,-500.0,0.00015197,2]
[401352765,1768151439780,-500.0,0.00015197,2]
[401352766,1768151439789,-500.0,0.00015197,2]
[401352767,1768151439798,-500.0,0.00015197,2]
[401352768,1768151439807,-500.0,0.00015197,2]
[401352769,1768151439816,-500.0,0.00015197,2]
[401352800,1768151439825,-500.0,0.00015197,2]
[401352803,1768151440178,-500.0,0.00015197,2]
[401352805,1768151440188,-500.0,0.00015197,2]
[401352807,1768151440197,-500.0,0.00015197,2]
[401352809,1768151440207,-500.0,0.00015197,2]
[401352811,1768151440218,-169.74974714,0.00015197,2]
[401352813,1768151440228,-172.16557738,0.00015197,2]
[401352814,1768151440238,-184.34720555,0.00015197,2]
[401352816,1768151440250,-500.0,0.00015197,2]
[401352818,1768151440261,-500.0,0.00015197,2]
[401352821,1768151440271,-164.54678539,0.00015197,2]
[401352822,1768151440279,-139998.84832789,0.00015198,2]
[401352825,1768151440296,-147574.3304,0.00015198,2]
[401352829,1768151440322,-582.56944268,0.00015198,2]
[401352881,1768151440804,-709.6477156,0.00015198,2]
[401352884,1768151440822,-7686.85411383,0.00015198,2]
[401352886,1768151440831,-150.0,0.00015198,2]
[401352888,1768151440840,-1000.0,0.00015204,2]
[401352890,1768151440851,-6835.7779781,0.00015287,2]
[401352894,1768151440881,-6065.4520219,0.00015287,2]
[401352896,1768151440890,-500.0,0.00015303,2]
[401352898,1768151440899,-500.0,0.00015303,2]
[401352900,1768151440908,-500.0,0.00015303,2]
[401352902,1768151440918,-500.0,0.00015303,2]
[401352904,1768151440927,-500.0,0.00015303,2]
[401352906,1768151440935,-500.0,0.00015303,2]
[401352908,1768151440943,-500.0,0.00015303,2]
[401352910,1768151440952,-500.0,0.00015303,2]
[401352912,1768151440960,-500.0,0.00015303,2]
[401352914,1768151440969,-500.0,0.00015303,2]
[401352916,1768151440978,-500.0,0.00015303,2]
[401352918,1768151440987,-500.0,0.00015303,2]
[401352920,1768151440997,-500.0,0.00015303,2]
[401352922,1768151441007,-500.0,0.00015303,2]
[401352924,1768151441016,-500.0,0.00015303,2]
[401352926,1768151441026,-500.0,0.00015303,2]
[401352929,1768151441035,-500.0,0.00015303,2]
[401352930,1768151441045,-500.0,0.00015303,2]
[401352932,1768151441054,-500.0,0.00015303,2]
[401352934,1768151441063,-500.0,0.00015303,2]
[401352936,1768151441072,-500.0,0.00015303,2]
[401352938,1768151441081,-500.0,0.00015303,2]
[401352940,1768151441090,-386.65632401,0.00015303,2]
[401352942,1768151441099,-505.19604421,0.00015303,2]
[401352944,1768151441108,-18231.61993099,0.00015409,2]
[401352946,1768151441117,-23674.11054156,0.00015409,2]
[401352948,1768151441126,-166.66,0.0001542,2]
[401352950,1768151441135,-14415.88718325,0.00015436,2]
[401352952,1768151441144,-500.0,0.00015471,2]
[401352954,1768151441154,-1801.26,0.00015471,2]
[401352956,1768151441163,-1089.8409,0.0001553,2]
[401352958,1768151441173,-252.0713034,0.00015569,2]
[401352960,1768151441182,-151.0,0.00015608,2]
[401352962,1768151441191,-18231.61993099,0.00015721,2]
[401352964,1768151441201,-23674.11054156,0.00015721,2]
[401352966,1768151441210,-500.0,0.00015745,2]
[401352968,1768151441220,-1801.26,0.00015745,2]
[401352970,1768151441229,-1479.73171685,0.000159,2]
[401352972,1768151441239,-1479.7317168,0.000159,2]
[401352974,1768151441252,-1479.7317168,0.000159,2]
[401352976,1768151441268,-1479.7317168,0.000159,2]
[401352978,1768151441277,-1479.7317168,0.000159,2]
[401352980,1768151441286,-1479.7317168,0.000159,2]
[401352982,1768151441295,-166.66,0.00015912,2]
[401352984,1768151441305,-500.0,0.00016019,2]
[401352987,1768151441314,-1801.26,0.00016019,2]
[401352989,1768151441323,-274.45,0.00016028,2]
[401352991,1768151441333,-18231.61993099,0.00016032,2]
[401352993,1768151441342,-23674.11054156,0.00016032,2]
[401352995,1768151441351,-500.0,0.00016035,2]
[401352997,1768151441360,-641.56801459,0.00016035,2]
[401352999,1768151441369,-500.0,0.00016035,2]
[401353001,1768151441379,-500.0,0.00016035,2]
[401353003,1768151441388,-500.0,0.00016035,2]
[401353005,1768151441397,-500.0,0.00016035,2]
[401353007,1768151441407,-500.0,0.00016035,2]
[401353009,1768151441415,-500.0,0.00016035,2]
[401353011,1768151441424,-252.0713034,0.00016035,2]
[401353013,1768151441434,-432.65827045,0.00016047,2]
[401353015,1768151441446,-1800.0,0.00016082,2]
[401353017,1768151441454,-482.99,0.00016082,2]
[401353019,1768151441463,-661.82,0.00016082,2]
[401353021,1768151441473,-1323.64,0.00016082,2]
[401353023,1768151441482,-439.26,0.000161,2]
[401353025,1768151441492,-9999.99,0.00016116,2]
[401353027,1768151441501,-3110.71,0.00016116,2]
[401353029,1768151441510,-299.99,0.00016116,4]
[401353031,1768151441519,-150.0,0.000162,2]
[401353033,1768151441529,-150.0,0.000162,2]
[401353035,1768151441538,-150.0,0.000162,2]
[401353037,1768151441547,-150.0,0.000162,2]
[401353039,1768151441556,-150.0,0.000162,2]
[401353041,1768151441566,-150.0,0.000162,2]
[401353043,1768151441575,-150.0,0.000162,2]
[401353045,1768151441584,-150.0,0.000162,2]
[401353047,1768151441594,-150.0,0.000162,2]
[401353049,1768151441604,-150.0,0.000162,2]
[401353051,1768151441613,-150.0,0.000162,2]
[401353053,1768151441622,-150.0,0.000162,2]
[401353055,1768151441631,-150.0,0.000162,2]
[401353057,1768151441640,-150.0,0.000162,2]
[401353059,1768151441649,-500.0,0.00016293,2]
[401353061,1768151441659,-1801.26,0.00016293,2]
[401353063,1768151441669,-510.0,0.00016321,2]
[401353065,1768151441679,-18231.61993099,0.00016343,2]
[401353067,1768151441688,-23674.11054156,0.00016343,2]
[401353069,1768151441697,-800.0,0.00016356,2]
[401353071,1768151441707,-171.49,0.00016356,2]
[401353073,1768151441716,-171.49,0.00016356,2]
[401353075,1768151441726,-171.49,0.00016356,2]
[401353077,1768151441735,-171.49,0.00016356,2]
[401353079,1768151441744,-150.0,0.00016364,2]
[401353081,1768151441753,-150.0,0.000164,2]
[401353083,1768151441763,-150.0,0.000164,2]
[401353085,1768151441772,-166.66,0.00016405,2]
[401353087,1768151441781,-150.0,0.00016425,2]
[401353089,1768151441790,-500.0,0.00016438,2]
[401353091,1768151441799,-500.0,0.00016438,2]
[401353093,1768151441809,-500.0,0.00016438,2]
[401353095,1768151441819,-336.43676287,0.00016438,2]
[401353097,1768151441828,-600.0,0.00016438,2]
[401353099,1768151441837,-784.87,0.00016438,10]
[401353102,1768151441848,-888.0,0.00016438,2]
[401353104,1768151441858,-800.0,0.00016438,2]
[401353106,1768151441868,-16526.13,0.00016438,2]
[401353108,1768151441877,-188.46718757,0.00016438,2]
[401353110,1768151441887,-150.0,0.00016457,2]
[401353112,1768151441897,-150.0,0.000165,2]
[401353114,1768151441905,-150.0,0.000165,2]
[401353116,1768151441914,-252.0713034,0.00016502,2]
[401353118,1768151441923,-420.0,0.00016521,2]
[401353120,1768151441933,-150.0,0.00016527,2]
[401353122,1768151441942,-195.0,0.00016545,2]
[401353124,1768151441951,-600.0,0.00016545,2]
[401353125,1768151441960,-366.70679748,0.00016545,2]
[401353127,1768151441969,-2500.0,0.00016545,2]
[401353129,1768151441979,-150.0,0.0001656,2]
[401353131,1768151441987,-500.0,0.00016567,2]
[401353133,1768151441997,-1801.26,0.00016567,2]
[401353135,1768151442006,-250.0,0.00016597,2]
[401353137,1768151442015,-195.0,0.00016597,2]
[401353139,1768151442024,-150.0,0.000166,2]
[401353141,1768151442034,-150.0,0.000166,2]
[401353143,1768151442043,-608.19660126,0.00016607,2]
[401353145,1768151442052,-200.0,0.00016649,2]
[401353147,1768151442062,-150.0,0.0001665,2]
[401353149,1768151442071,-18231.61993099,0.00016655,2]
[401353151,1768151442080,-150.0,0.00016691,2]
[401353152,1768151442089,-1680.0,0.00016712,2]
[401353153,1768151442098,-159.5,0.00016712,2]
[401353154,1768151442108,-150.0,0.00016714,2]
[401353155,1768151442117,-162.0,0.0001672,2]
[401353156,1768151442127,-150.0,0.000168,2]
[401353157,1768151442136,-150.0,0.000168,2]
[401353158,1768151442145,-150.0,0.000168,2]
[401353159,1768151442154,-150.0,0.000168,2]
[401353160,1768151442164,-158.55612686,0.00016841,2]
[401353162,1768151442178,-1801.26,0.00016841,2]
[401353164,1768151442187,-150.0,0.00016855,2]
[401353166,1768151442196,-150.0,0.00016875,2]
[401353168,1768151442206,-150.0,0.00016898,2]
[401353170,1768151442216,-166.66,0.00016898,2]
[401353172,1768151442225,-91800.0,0.000169,6]
[401353174,1768151442234,-150.0,0.0001692,2]
[401353176,1768151442246,-3845.0,0.00016957,2]
[401353178,1768151442255,-18231.61993099,0.00016966,2]
[401353180,1768151442264,-252.0713034,0.00016968,2]
[401353182,1768151442273,-150.0,0.00016971,2]
[401353184,1768151442283,-200.01,0.00016986,2]
[401353186,1768151442292,-150.0,0.00017,2]
[401353188,1768151442301,-150.0,0.00017,2]
[401353190,1768151442310,-776.42891,0.00017,2]
[401353192,1768151442319,-150.0,0.00017018,2]
[401353194,1768151442329,-464.0,0.00017068,2]
[401353196,1768151442339,-500.0,0.00017073,2]
[401353198,1768151442348,-500.0,0.00017073,2]
[401353200,1768151442357,-500.0,0.00017073,2]
[401353202,1768151442367,-500.0,0.00017073,2]
[401353204,1768151442376,-500.51807202,0.00017073,2]
[401353206,1768151442385,-256.01043912,0.00017073,2]
[401353208,1768151442394,-500.0,0.00017073,2]
[401353210,1768151442404,-632.9385196,0.00017073,2]
[401353212,1768151442413,-500.35865893,0.00017073,2]
[401353214,1768151442423,-500.0,0.00017073,2]
[401353216,1768151442432,-500.0,0.00017073,2]
[401353218,1768151442441,-500.0,0.00017073,2]
[401353220,1768151442450,-503.68229257,0.00017073,2]
[401353223,1768151442460,-500.0,0.00017073,2]
[401353225,1768151442469,-500.0,0.00017073,2]
[401353227,1768151442479,-500.0,0.00017073,2]
[401353229,1768151442488,-501.08333283,0.00017073,2]
[401353231,1768151442498,-501.064427,0.00017073,2]
[401353233,1768151442507,-368.2931148,0.00017073,2]
[401353235,1768151442516,-500.0,0.00017073,2]
[401353237,1768151442529,-500.0,0.00017073,2]
[401353239,1768151442539,-500.0,0.00017073,2]
[401353240,1768151442548,-500.88165281,0.00017073,2]
[401353242,1768151442557,-500.99700202,0.00017073,2]
[401353244,1768151442567,-500.0,0.00017073,2]
[401353246,1768151442576,-500.0,0.00017073,2]
[401353248,1768151442585,-500.0,0.00017073,2]
[401353250,1768151442595,-646.79718152,0.00017073,2]
[401353252,1768151442605,-1000.0,0.00017087,2]
[401353255,1768151442615,-500.0,0.00017099,2]
[401353256,1768151442624,-250.0,0.00017099,2]
[401353258,1768151442634,-500.0,0.00017099,2]
[401353261,1768151442643,-500.0,0.00017099,2]
[401353262,1768151442652,-500.0,0.00017099,2]
[401353265,1768151442662,-620.0,0.00017099,2]
[401353266,1768151442671,-238.92822807,0.00017099,2]
[401353268,1768151442680,-578.20924308,0.00017099,2]
[401353270,1768151442690,-250.0,0.00017099,2]
[401353272,1768151442699,-250.0,0.00017099,2]
[401353274,1768151442707,-250.0,0.00017099,2]
[401353276,1768151442716,-998.0,0.00017099,2]
[401353278,1768151442725,-402.0,0.00017099,2]
[401353280,1768151442735,-553.64373807,0.00017099,2]
[401353282,1768151442744,-322.6107,0.00017099,2]
[401353284,1768151442753,-500.0,0.00017099,2]
[401353286,1768151442762,-651.90523038,0.00017099,2]
[401353288,1768151442771,-150.0,0.000171,2]
[401353290,1768151442781,-150.0,0.000171,2]
[401353292,1768151442790,-150.0,0.000171,2]
[401353294,1768151442799,-150.0,0.000171,2]
[401353296,1768151442809,-150.0,0.000171,2]
[401353298,1768151442818,-150.0,0.000171,2]
[401353300,1768151442827,-1801.26,0.00017115,2]
[401353302,1768151442836,-200.0,0.00017174,2]
[401353305,1768151442850,-150.0,0.00017182,2]
[401353307,1768151442860,-150.0,0.000172,2]
[401353309,1768151442869,-150.0,0.000172,2]
[401353311,1768151442878,-150.0,0.00017229,2]
[401353314,1768151442887,-330.14190427,0.00017245,2]
[401353317,1768151442896,-18231.61993099,0.00017277,2]
[401353320,1768151442906,-150.0,0.0001728,2]
[401353324,1768151442916,-1030.52,0.000173,2]
[401353327,1768151442927,-122400.0,0.000173,6]
[401353329,1768151442936,-150.0,0.00017325,2]
[401353331,1768151442946,-7108.0,0.00017336,2]
[401353333,1768151442956,-3845.0,0.00017336,2]
[401353335,1768151442965,-1990.229,0.00017343,2]
[401353337,1768151442975,-150.0,0.00017345,2]
[401353339,1768151442984,-834.0,0.0001736,2]
[401353341,1768151442994,-500.0,0.00017366,2]
[401353343,1768151443003,-500.0,0.00017366,2]
[401353345,1768151443012,-500.0,0.00017366,2]
[401353347,1768151443021,-500.0,0.00017366,2]
[401353349,1768151443031,-1801.26,0.00017389,2]
[401353351,1768151443041,-166.66,0.00017391,2]
[401353353,1768151443051,-150.0,0.000174,2]
[401353355,1768151443060,-150.0,0.000174,2]
[401353357,1768151443069,-150.0,0.000174,2]
[401353359,1768151443079,-150.0,0.000174,2]
[401353361,1768151443088,-153000.0,0.000174,6]
[401353363,1768151443097,-274.45,0.00017414,2]
[401353365,1768151443107,-158.88908691,0.00017431,2]
[401353367,1768151443116,-252.0713034,0.00017434,2]
[401353369,1768151443126,-3845.0,0.00017443,2]
[401353371,1768151443135,-1800.0,0.00017452,7]
[401353373,1768151443145,-2327.0,0.00017454,2]
[401353375,1768151443154,-150.0,0.00017486,2]
[401353377,1768151443164,-2000.0,0.000175,2]
[401353379,1768151443177,-1000.0,0.000175,2]
[401353381,1768151443187,-30600.0,0.000175,6]
[401353383,1768151443197,-150.0,0.00017509,2]
[401353386,1768151443207,-866.0,0.00017521,2]
[401353388,1768151443217,-150.0,0.0001755,2]
[401353389,1768151443227,-3845.0,0.00017566,2]
[401353392,1768151443237,-330.14190427,0.00017573,2]
[401353393,1768151443248,-18231.61993099,0.00017589,2]
[401353396,1768151443258,-150.0,0.000176,2]
[401353398,1768151443268,-150.0,0.000176,2]
[401353400,1768151443277,-30600.0,0.000176,6]
[401353402,1768151443287,-516.81548124,0.0001761,2]
[401353404,1768151443296,-1000.0,0.00017621,2]
[401353406,1768151443305,-243.38858154,0.00017621,2]
[401353408,1768151443315,-418.63063862,0.00017621,2]
[401353410,1768151443324,-1000.0,0.00017621,2]
[401353412,1768151443334,-150.0,0.0001764,2]
[401353414,1768151443344,-2291.8576557,0.0001764,2]
[401353416,1768151443353,-574.12855637,0.00017647,2]
[401353418,1768151443363,-2327.0,0.00017652,2]
[401353420,1768151443373,-1801.26,0.00017663,2]
[401353422,1768151443382,-150.0,0.00017673,2]
[401353424,1768151443391,-150.0,0.000177,2]
[401353426,1768151443400,-150.0,0.000177,2]
[401353428,1768151443409,-30600.0,0.000177,6]
[401353430,1768151443419,-1000.0,0.000177,2]
[401353432,1768151443428,-1283.495,0.00017704,2]
[401353434,1768151443437,-916.599,0.00017704,2]
[401353436,1768151443446,-1202.14,0.00017704,2]
[401353438,1768151443456,-2437.0,0.00017719,2]
[401353440,1768151443465,-566.0,0.00017719,2]
[401353442,1768151443474,-4820.0,0.00017719,2]
[401353444,1768151443484,-158.08,0.00017721,2]
[401353446,1768151443493,-800.0,0.00017726,7]
[401353448,1768151443503,-154.01,0.00017734,2]
[401353450,1768151443512,-150.0,0.00017743,2]
[401353452,1768151443521,-1000.0,0.00017754,2]
[401353454,1768151443531,-1000.0,0.00017756,2]
[401353456,1768151443540,-1000.0,0.00017758,2]
[401353458,1768151443550,-1000.0,0.00017763,2]
[401353460,1768151443559,-263.81978441,0.00017765,3]
[401353462,1768151443569,-616.50589084,0.00017773,2]
[401353464,1768151443578,-150.0,0.00017775,2]
[401353466,1768151443588,-1000.0,0.00017776,2]
[401353468,1768151443597,-664.28,0.00017778,2]
[401353470,1768151443608,-1000.0,0.00017787,2]
[401353472,1768151443618,-1000.0,0.00017792,2]
[401353474,1768151443627,-1000.0,0.00017793,2]
[401353476,1768151443637,-1000.0,0.000178,2]
[401353478,1768151443646,-150.0,0.000178,2]
[401353480,1768151443655,-150.0,0.000178,2]
[401353482,1768151443665,-1000.0,0.000178,2]
[401353484,1768151443674,-30600.0,0.000178,6]
[401353486,1768151443684,-1000.0,0.00017802,2]
[401353488,1768151443693,-1127.582295,0.00017815,2]
[401353491,1768151443702,-1000.0,0.00017818,2]
[401353493,1768151443711,-1552.14999,0.0001782,2]
[401353495,1768151443721,-1552.15,0.0001782,2]
[401353497,1768151443730,-1000.0,0.00017821,2]
[401353499,1768151443740,-1000.0,0.00017825,2]
[401353501,1768151443749,-1264.076,0.00017827,2]
[401353504,1768151443759,-1552.15,0.0001783,2]
[401353506,1768151443769,-263.81978441,0.00017833,3]
[401353508,1768151443779,-150.0,0.00017836,2]
[401353510,1768151443788,-1000.0,0.00017839,2]
[401353511,1768151443798,-1000.0,0.0001784,2]
[401353513,1768151443807,-1000.0,0.0001784,2]
[401353515,1768151443816,-1000.0,0.00017844,2]
[401353517,1768151443825,-157.14731633,0.0001785,2]
[401353519,1768151443834,-1000.0,0.00017851,2]
[401353555,1768151444143,-1000.0,0.00017856,2]
[401353557,1768151444152,-200.0,0.00017856,2]
[401353559,1768151444162,-6847.0193639,0.00017858,2]
[401353561,1768151444173,-8735.826468,0.00017858,2]
[401353562,1768151444182,-4378.0400908,0.00017858,2]
[401353563,1768151444191,-52302.0571951,0.00017858,2]
[401353564,1768151444200,-1552.15,0.0001786,2]
[401353565,1768151444209,-274.45,0.0001786,2]
[401353566,1768151444218,-177332.42751043,0.00017861,2]
[401353567,1768151444227,-250446.31334681,0.00017861,2]
[401353568,1768151444236,-327345.71379511,0.00017861,2]
[401353569,1768151444247,-906.513466,0.00017861,2]
[401353570,1768151444256,-906.513466,0.00017861,2]
[401353572,1768151444265,-2039.220797,0.00017861,2]
[401353574,1768151444275,-151.0,0.00017861,2]
[401353576,1768151444284,-906.513466,0.00017861,2]
[401353578,1768151444293,-2039.220797,0.00017861,2]
[401353580,1768151444303,-151.0,0.00017861,2]
[401353582,1768151444312,-906.513466,0.00017861,2]
[401353584,1768151444322,-2039.220797,0.00017861,2]
[401353586,1768151444331,-2039.220797,0.00017861,2]
[401353588,1768151444342,-465.445525,0.00017861,2]
[401353590,1768151444351,-151.0,0.00017861,2]
[401353592,1768151444360,-465.445525,0.00017861,2]
[401353594,1768151444369,-465.445525,0.00017861,2]
[401353596,1768151444378,-282.28364,0.00017861,2]
[401353598,1768151444387,-465.445525,0.00017861,2]
[401353600,1768151444397,-282.28364,0.00017861,2]
[401353602,1768151444411,-282.28364,0.00017861,2]
[401353604,1768151444420,-623.001243,0.00017861,2]
[401353606,1768151444430,-151.0,0.00017861,2]
[401353608,1768151444443,-282.28364,0.00017861,2]
[401353610,1768151444452,-623.001243,0.00017861,2]
[401353612,1768151444461,-623.001243,0.00017861,2]
[401353614,1768151444470,-151.0,0.00017861,2]
[401353616,1768151444480,-623.001243,0.00017861,2]
[401353618,1768151444489,-1580.779284,0.00017861,2]
[401353620,1768151444498,-1580.779284,0.00017861,2]
[401353622,1768151444509,-252.711601,0.00017861,2]
[401353624,1768151444518,-1580.779284,0.00017861,2]
[401353626,1768151444528,-1580.779284,0.00017861,2]
[401353628,1768151444537,-203.441097,0.00017861,2]
[401353630,1768151444547,-151.0,0.00017861,2]
[401353632,1768151444557,-151.0,0.00017861,2]
[401353634,1768151444567,-151.0,0.00017861,2]
[401353636,1768151444576,-201.153607,0.00017861,2]
[401353638,1768151444585,-201.153607,0.00017861,2]
[401353640,1768151444595,-438.857825,0.00017861,2]
[401353642,1768151444604,-201.153607,0.00017861,2]
[401353644,1768151444614,-438.857825,0.00017861,2]
[401353646,1768151444625,-201.153607,0.00017861,2]
[401353648,1768151444637,-438.857825,0.00017861,2]
[401353650,1768151444647,-438.857825,0.00017861,2]
[401353652,1768151444656,-151.0,0.00017861,2]
[401353654,1768151444665,-151.0,0.00017861,2]
[401353656,1768151444675,-151.0,0.00017861,2]
[401353658,1768151444685,-151.0,0.00017861,2]
[401353660,1768151444694,-151.0,0.00017861,2]
[401353662,1768151444703,-151.0,0.00017861,2]
[401353664,1768151444713,-165.572138,0.00017861,2]
[401353666,1768151444722,-284.025534,0.00017861,2]
[401353668,1768151444732,-280.30467,0.00017861,2]
[401353671,1768151444741,-151.0,0.00017861,2]
[401353672,1768151444752,-165.572138,0.00017861,2]
[401353674,1768151444761,-332.214435,0.00017861,2]
[401353677,1768151444770,-184.371786,0.00017861,2]
[401353679,1768151444780,-165.572138,0.00017861,2]
[401353681,1768151444790,-332.214435,0.00017861,2]
[401353683,1768151444799,-165.572138,0.00017861,2]
[401353685,1768151444809,-332.214435,0.00017861,2]
[401353687,1768151444818,-332.214435,0.00017861,2]
[401353689,1768151444827,-151.0,0.00017861,2]
[401353691,1768151444837,-573.970445,0.00017861,2]
[401353693,1768151444846,-573.970445,0.00017861,2]
[401353695,1768151444855,-151.0,0.00017861,2]
[401353697,1768151444865,-573.970445,0.00017861,2]
[401353699,1768151444874,-573.970445,0.00017861,2]
[401353701,1768151444883,-542.914314,0.00017861,2]
[401353703,1768151444892,-282.912387,0.00017861,2]
[401353705,1768151444901,-1965.222408,0.00017861,2]
[401353707,1768151444910,-542.914314,0.00017861,2]
[401353709,1768151444919,-1965.222408,0.00017861,2]
[401353711,1768151444928,-1965.222408,0.00017861,2]
[401353713,1768151444937,-542.914314,0.00017861,2]
[401353715,1768151444947,-1965.222408,0.00017861,2]
[401353717,1768151444956,-542.914314,0.00017861,2]
[401353719,1768151444965,-282.912387,0.00017861,2]
[401353721,1768151444974,-2235.751841,0.00017861,2]
[401353723,1768151444984,-282.912387,0.00017861,2]
[401353725,1768151444993,-2235.751841,0.00017861,2]
[401353727,1768151445002,-282.912387,0.00017861,2]
[401353729,1768151445011,-2235.751841,0.00017861,2]
[401353731,1768151445021,-2235.751841,0.00017861,2]
[401353733,1768151445029,-921.834081,0.00017861,2]
[401353735,1768151445038,-921.834081,0.00017861,2]
[401353737,1768151445047,-921.834081,0.00017861,2]
[401353739,1768151445057,-2068.70979,0.00017861,2]
[401353741,1768151445066,-921.834081,0.00017861,2]
[401353743,1768151445075,-2068.70979,0.00017861,2]
[401353745,1768151445084,-1001.36882,0.00017861,2]
[401353747,1768151445093,-2068.70979,0.00017861,2]
[401353749,1768151445103,-1001.36882,0.00017861,2]
[401353751,1768151445112,-2068.70979,0.00017861,2]
[401353753,1768151445121,-1001.36882,0.00017861,2]
[401353755,1768151445131,-1001.36882,0.00017861,2]
[401353757,1768151445140,-500.0,0.00017864,2]
[401353759,1768151445149,-500.0,0.00017864,2]
[401353761,1768151445158,-500.0,0.00017864,2]
[401353763,1768151445169,-500.0,0.00017864,2]
[401353765,1768151445180,-500.0,0.00017864,2]